bitfinex/quotes_SOLUSD_20250805
["timestamp","ask_amount","ask_price","bid_price","bid_amount"]
[1754413240245,23.53898349,163.96,163.95,0.06]
[1754413240640,49.53898349,163.96,163.95,0.06]
[1754413240847,23.53898349,163.96,163.95,0.06]
[1754413241037,48.97898349,163.96,163.95,0.06]
[1754413241238,85.99561181,163.96,163.95,0.06]
[1754413241424,42.59561181,163.96,163.95,0.06]
[1754413242143,48.69466035,163.96,163.95,0.06]
[1754413242539,36.18352219,163.96,163.95,0.06]
[1754413242761,48.69466035,163.96,163.95,0.06]
[1754413244746,92.93898349,163.96,163.95,0.06]
[1754413244925,98.02017385,163.96,163.95,0.06]
[1754413246158,92.37898349,163.96,163.95,0.06]
[1754413246719,97.46017385,163.96,163.95,0.06]
[1754413248422,98.02017385,163.96,163.95,0.06]
[1754413249119,97.46017385,163.96,163.95,0.06]
[1754413249520,35.16566401,163.96,163.95,0.06]
[1754413249720,4.08447365,163.96,163.95,0.73]
[1754413249921,4.08447365,163.96,163.95,28.34735373]
[1754413250221,4.08447365,163.98,163.96,15.10621557]
[1754413250450,4.08447365,163.98,163.97,0.67]
[1754413250746,18.0023507,163.98,163.95,0.06]
[1754413250981,7.81957238,163.96,163.95,0.06]
[1754413251157,11.90404603,163.96,163.95,0.06]
[1754413252635,16.60180836,163.96,163.95,0.06]
[1754413253656,22.7008569,163.96,163.95,0.06]
[1754413254650,4.08447365,163.96,163.95,0.06]
[1754413254856,16.60180836,163.96,163.95,0.73]
[1754413257364,4.08447365,163.96,163.95,0.73]
[1754413257579,4.08447365,163.97,163.95,0.73]
[1754413257869,4.08447365,163.96,163.95,0.06]
[1754413258045,4.08447365,163.97,163.95,0.06]
[1754413258249,4.08447365,163.96,163.95,0.06]
[1754413258484,38.51733471,163.98,163.95,15.16621557]
[1754413258485,4.08447365,163.97,163.95,15.16621557]
[1754413258837,4.08447365,163.97,163.96,15.77621557]
[1754413259038,4.08447365,163.98,163.96,15.77621557]
[1754413259231,0.03,163.99,163.97,0.67]
[1754413259461,4.08180922,163.98,163.97,0.67]
[1754413260882,22.69747036,163.98,163.95,0.06]
[1754413261040,38.51733471,163.96,163.95,0.06]
[1754413261241,42.59914393,163.96,163.95,0.06]
[1754413262486,42.59914393,163.96,163.95,0.73]
[1754413262687,48.69819247,163.96,163.95,0.06]
[1754413263266,42.59914393,163.96,163.95,0.73]
[1754413263454,48.69819247,163.96,163.95,0.06]
[1754413264200,98.00370597,163.96,163.95,0.06]
[1754413264394,4.08180922,163.96,163.95,0.77]
[1754413266049,4.08180922,163.96,163.95,15.87621557]
[1754413266288,4.08180922,163.98,163.96,15.10621557]
[1754413266589,0.03,163.99,163.97,28.33355028]
[1754413266749,4.11180922,163.99,163.97,28.33355028]
[1754413267087,0.03,163.99,163.98,0.71]
[1754413267290,0.03,163.99,163.98,28.33355028]
[1754413267586,0.03,163.99,163.98,34.43185495]
[1754413268150,0.03,163.99,163.98,28.33355028]
[1754413268389,0.03,163.99,163.96,0.71]
[1754413268576,16.63450998,163.99,163.95,15.87621557]
[1754413268755,12.51733471,163.97,163.95,0.06]
[1754413269082,16.60253988,163.96,163.95,0.06]
[1754413269376,4.08520517,163.96,163.95,0.06]
[1754413269581,4.08520517,163.98,163.95,0.06]
[1754413269984,4.08520517,163.98,163.96,0.71]
[1754413270166,4.08520517,163.98,163.97,0.71]
[1754413270365,0.03,163.99,163.97,13.22733471]
[1754413270756,0.03,163.98,163.97,12.51733471]
[1754413270961,0.03,163.98,163.97,12.65949628]
[1754413271379,0.03,163.98,163.97,13.36949628]
[1754413271773,0.03,163.98,163.97,19.46817286]
[1754413272170,0.03,163.98,163.97,35.18425608]
[1754413272390,0.03,163.99,163.98,15.24837714]
[1754413272566,0.03,163.99,163.98,71.83571185]
[1754413273185,0.03,164.0,163.99,0.14216157]
[1754413273372,0.03,164.0,163.99,28.47571185]
[1754413273795,0.03,164.0,163.99,34.57364465]
[1754413275499,0.03,164.0,163.99,22.05630994]
[1754413275790,0.03,164.0,163.99,34.57364465]
[1754413276699,0.03,164.0,163.99,27.76571185]
[1754413276872,0.03,164.0,163.99,28.47571185]
[1754413277771,0.03,164.0,163.99,34.57364465]
[1754413278272,0.03,164.0,163.99,27.76571185]
[1754413278484,0.03,164.0,163.99,34.57364465]
[1754413279981,0.03,164.0,163.99,22.05630994]
[1754413280183,0.03,164.0,163.99,34.57364465]
[1754413281086,0.03,164.0,163.99,15.24837714]
[1754413281291,0.03,164.0,163.99,15.10621557]
[1754413282708,0.03,164.0,163.98,43.36]
[1754413283895,0.03,164.0,163.99,15.10621557]
[1754413284070,0.03,164.0,163.99,28.33355028]
[1754413284901,0.03,164.0,163.99,15.81621557]
[1754413285081,0.03,164.0,163.99,34.57364465]
[1754413286510,0.03,164.0,163.99,15.10621557]
[1754413287288,0.03,164.0,163.99,34.43148308]
[1754413287513,0.03,164.0,163.99,21.91414837]
[1754413288108,0.03,164.0,163.99,15.81621557]
[1754413288287,0.03,164.0,163.99,15.10621557]
[1754413288676,0.03,164.0,163.99,21.20414837]
[1754413288893,0.03,164.0,163.99,34.57364465]
[1754413290810,0.03,164.0,163.99,77.91364465]
[1754413291999,0.03,164.0,163.99,167.01364465]
[1754413292402,12.541138,164.01,164.0,0.42648471]
[1754413292587,12.541138,164.01,164.0,28.76003499]
[1754413293712,12.541138,164.01,164.0,34.85759596]
[1754413294301,12.541138,164.01,164.0,34.57327282]
[1754413294489,12.541138,164.01,164.0,33.86327282]
[1754413294905,12.541138,164.01,164.0,33.72111125]
[1754413295113,12.541138,164.01,164.0,15.10621557]
[1754413295493,12.541138,164.01,164.0,21.20377654]
[1754413295806,12.541138,164.01,164.0,15.10621557]
[1754413296030,13.101138,164.01,164.0,15.10621557]
[1754413296215,12.541138,164.01,164.0,15.10621557]
[1754413296519,12.541138,164.01,164.0,21.20377654]
[1754413296813,12.541138,164.01,164.0,21.87377654]
[1754413296999,12.541138,164.01,164.0,22.01593811]
[1754413297333,12.541138,164.01,164.0,34.53327282]
[1754413299734,12.541138,164.01,164.0,15.10621557]
[1754413302509,57.71566904,164.01,163.99,0.06]
[1754413302709,13.07733471,164.0,163.99,0.06]
[1754413303242,0.56,164.0,163.99,0.06]
[1754413303552,13.07733471,164.0,163.99,0.06]
[1754413303745,17.16073802,164.0,163.99,0.06]
[1754413304415,16.60073802,164.0,163.99,0.06]
[1754413304617,4.08340331,164.0,163.99,58.50621557]
[1754413304808,12.541138,164.01,163.99,58.50621557]
[1754413305124,12.541138,164.01,164.0,15.77621557]
[1754413305320,12.541138,164.01,164.0,15.10621557]
[1754413305818,12.541138,164.01,164.0,15.91837714]
[1754413306437,12.541138,164.01,164.0,34.53327282]
[1754413310745,12.541138,164.01,164.0,33.86327282]
[1754413311071,12.541138,164.01,164.0,34.53327282]
[1754413313736,12.541138,164.01,164.0,123.63327282]
[1754413314130,0.03,164.02,164.01,0.42648471]
[1754413314339,0.03,164.02,164.01,72.06003499]
[1754413314939,0.03,164.02,164.01,78.15722418]
[1754413315844,0.03,164.02,164.01,77.87290104]
[1754413317939,0.03,164.02,164.01,166.97290104]
[1754413318623,1e-08,164.02,164.01,193.25722418]
[1754413318832,0.03,164.06,164.04,0.14216157]
[1754413319026,0.03,164.06,164.05,71.75571185]
[1754413319230,0.03,164.06,164.05,77.85141437]
[1754413320160,0.03,164.06,164.05,34.53141437]
[1754413320376,0.59,164.06,164.05,15.10621557]
[1754413320531,0.03,164.06,164.05,15.10621557]
[1754413321047,0.03,164.06,164.05,15.24837714]
[1754413321353,0.03,164.06,164.05,21.34407966]
[1754413321736,0.03,164.06,164.05,33.86141437]
[1754413321942,0.03,164.06,164.05,34.53141437]
[1754413322457,0.03,164.06,164.05,15.24837714]
[1754413322766,0.59,164.06,164.05,15.10621557]
[1754413322959,0.03,164.06,164.05,21.20191809]
[1754413323477,0.03,164.06,164.05,34.55141437]
[1754413323837,0.08,164.07,164.05,33.86141437]
[1754413324055,0.08,164.07,164.06,58.42621557]
[1754413324674,0.08,164.07,164.06,58.56837714]
[1754413324837,0.08,164.07,164.06,71.77571185]
[1754413325164,0.08,164.07,164.06,64.66370811]
[1754413325371,0.08,164.07,164.06,15.10621557]
[1754413325664,0.08,164.07,164.06,58.42621557]
[1754413325862,0.64,164.07,164.06,58.42621557]
[1754413326038,0.08,164.07,164.06,58.42621557]
[1754413326245,13.15733471,164.07,164.06,43.32]
[1754413326754,17.25226353,164.07,164.06,43.32]
[1754413327135,17.25226353,164.07,164.05,43.32]
[1754413327477,13.07733471,164.06,164.05,43.32]
[1754413327638,17.1720029,164.06,164.05,43.32]
[1754413328269,4.65466819,164.06,164.05,43.32]
[1754413328431,12.51733471,164.06,164.05,43.32]
[1754413328637,4.17466819,164.07,164.05,49.41570252]
[1754413328970,17.2520029,164.07,164.05,58.42621557]
[1754413329177,4.09466819,164.06,164.05,58.42621557]
[1754413329356,12.51733471,164.06,164.05,58.42621557]
[1754413329735,16.61396473,164.06,164.05,58.42621557]
[1754413329947,17.17396473,164.06,164.0,89.30216156]
[1754413330188,12.51733471,164.02,164.01,15.10621557]
[1754413330359,12.51733471,164.02,164.01,58.42621557]
[1754413330888,12.51733471,164.03,164.02,15.10621557]
[1754413331045,16.6149973,164.03,164.02,15.10621557]
[1754413331774,4.09766259,164.03,164.02,15.10621557]
[1754413332380,12.51733471,164.04,164.02,15.10621557]
[1754413332567,6.65533097,164.06,164.03,43.32]
[1754413332769,4.09650978,164.06,164.03,43.32]
[1754413333087,12.51733471,164.04,164.01,15.10621557]
[1754413333257,16.61384449,164.03,164.02,43.32]
[1754413333592,12.51733471,164.03,164.02,43.32]
[1754413333972,12.51733471,164.05,164.03,15.10621557]
[1754413334176,12.51733471,164.05,164.04,43.32]
[1754413334558,4.09923669,164.05,164.04,59.11621557]
[1754413334759,4.09923669,164.06,164.05,15.10621557]
[1754413334959,4.09923669,164.06,164.05,58.42621557]
[1754413335268,16.6165714,164.06,164.05,64.52191809]
[1754413335478,4.09923669,164.06,164.05,65.21191809]
[1754413335678,16.6965714,164.07,164.05,58.42621557]
[1754413335986,4.09923669,164.06,164.05,58.42621557]
[1754413336283,16.6165714,164.06,164.05,43.32]
[1754413336992,4.09896723,164.06,164.05,58.42621557]
[1754413337286,12.59733471,164.07,164.05,43.32]
[1754413337487,4.09896723,164.06,164.05,65.21191809]
[1754413337690,4.17896723,164.07,164.05,65.21191809]
[1754413337893,4.17896723,164.07,164.06,15.10621557]
[1754413338085,0.08,164.07,164.05,50.10570252]
[1754413339390,0.08,164.07,164.06,21.89154654]
[1754413341263,0.08,164.07,164.06,22.03370811]
[1754413341495,0.08,164.07,164.06,34.55104282]
[1754413343778,0.08,164.07,164.06,58.40621557]
[1754413343988,12.59733471,164.07,164.06,58.40621557]
[1754413344184,0.08,164.07,164.06,58.40621557]
[1754413344606,0.08,164.07,164.06,43.3]
[1754413344811,0.08,164.07,164.06,67.04672563]
[1754413345491,0.08,164.07,164.06,73.1420566]
[1754413346018,0.08,164.07,164.06,64.64370811]
[1754413346180,0.08,164.07,164.06,58.40621557]
[1754413347099,0.08,164.07,164.06,64.50154654]
[1754413347307,0.08,164.07,164.06,58.40621557]
[1754413347478,0.08,164.07,164.06,43.3]
[1754413350984,0.08,164.07,164.06,64.64370811]
[1754413351183,0.08,164.07,164.06,73.1420566]
[1754413351401,0.08,164.07,164.06,59.23837714]
[1754413351708,0.08,164.07,164.06,43.3]
[1754413352007,8.44834849,164.07,164.06,43.3]
[1754413352308,14.54339988,164.07,164.05,43.3]
[1754413352600,7.80834849,164.06,164.05,43.3]
[1754413352811,8.36834849,164.06,164.02,0.06]
[1754413352998,0.56,164.05,164.03,43.3]
[1754413353216,7.80834849,164.04,164.02,0.06]
[1754413353502,7.80834849,164.03,164.02,0.06]
[1754413353800,8.36834849,164.03,164.02,0.06]
[1754413354007,11.91070007,164.03,164.02,0.06]
[1754413354196,7.80834849,164.03,164.02,0.06]
[1754413354582,11.91147334,164.03,164.02,0.06]
[1754413354906,16.61055873,164.03,164.02,0.06]
[1754413355901,16.71055873,164.03,164.02,0.06]
[1754413356145,22.8070045,164.03,164.0,0.06]
[1754413356315,38.79175702,164.01,164.0,0.06]
[1754413356607,48.99207106,164.01,164.0,0.06]
[1754413356796,49.09207106,164.01,164.0,0.06]
[1754413357308,42.61055873,164.01,164.0,0.06]
[1754413357508,38.50743388,164.01,164.0,0.06]
[1754413358517,16.60843037,164.01,164.0,0.06]
[1754413358686,4.10099649,164.01,164.0,0.06]
[1754413358997,16.60843037,164.01,164.0,0.06]
[1754413359887,4.10099649,164.01,164.0,0.06]
[1754413360219,12.50743388,164.01,164.0,0.06]
[1754413360516,16.60843037,164.01,164.0,0.06]
[1754413361029,4.10099649,164.01,164.0,0.06]
[1754413361323,4.10099649,164.02,164.0,13.23743388]
[1754413361609,4.10099649,164.03,164.01,43.99]
[1754413361824,4.10099649,164.03,164.02,15.10621557]
[1754413361981,4.10099649,164.05,164.02,27.61364945]
[1754413362186,4.10099649,164.06,164.03,13.17743388]
[1754413362413,22.41657349,164.06,164.04,43.32]
[1754413362611,4.10099649,164.05,164.04,43.99]
[1754413362807,4.10099649,164.06,164.04,43.99]
[1754413363495,12.50743388,164.05,164.04,43.32]
[1754413363696,16.60843037,164.05,164.04,43.32]
[1754413363907,16.60843037,164.05,164.02,43.32]
[1754413364218,12.50743388,164.03,164.02,43.32]
[1754413365094,12.50743388,164.04,164.02,43.32]
[1754413365623,4.09569769,164.03,164.02,43.32]
[1754413365792,0.08,164.07,164.03,15.10621557]
[1754413366104,4.17536186,164.07,164.05,15.10621557]
[1754413366304,4.17536186,164.07,164.06,43.99]
[1754413366526,12.58743388,164.07,164.06,43.32]
[1754413366749,4.17536186,164.07,164.06,43.32]
[1754413367529,16.68279574,164.07,164.06,43.32]
[1754413367724,22.7777552,164.07,164.06,43.32]
[1754413367923,49.3377552,164.07,164.04,43.32]
[1754413368136,12.50743388,164.05,164.02,43.3]
[1754413368517,12.50743388,164.04,164.02,43.97]
[1754413369720,12.50743388,164.03,164.02,43.97]
[1754413371111,16.60403657,164.03,164.02,43.3]
[1754413372043,16.60403657,164.03,164.0,15.16621557]
[1754413372216,12.50743388,164.01,164.0,0.06]
[1754413372840,16.60306827,164.01,164.0,0.06]
[1754413373052,22.70025746,164.01,164.0,0.06]
[1754413373327,16.60306827,164.01,164.0,0.06]
[1754413373731,12.50743388,164.01,164.0,0.06]
[1754413374033,16.60173491,164.01,164.0,0.06]
[1754413374238,4.09430103,164.01,164.0,0.73]
[1754413374422,16.60200051,164.02,164.0,0.73]
[1754413374735,7.8167226,164.01,164.0,0.73]
[1754413377308,7.8167226,164.01,164.0,0.06]
[1754413378034,18.56593187,164.01,164.0,0.06]
[1754413378242,18.00593187,164.01,164.0,0.06]
[1754413378741,11.90874268,164.01,164.0,0.06]
[1754413379312,11.90874268,164.01,164.0,0.73]
[1754413379537,7.8167226,164.01,164.0,0.73]
[1754413380037,7.8167226,164.01,164.0,0.06]
[1754413380420,11.90768888,164.01,164.0,0.06]
[1754413380822,18.00487807,164.01,164.0,0.06]
[1754413381036,95.84376224,164.01,163.99,0.06]
[1754413381243,26.28432314,163.98,163.97,0.06]
[1754413381536,26.28432314,163.98,163.95,0.06]
[1754413381537,0.28432314,163.97,163.95,0.06]
[1754413381747,26.0,163.94,163.93,0.06]
[1754413381948,46.00873462,163.94,163.84,0.67]
[1754413382120,7.8167226,163.85,163.82,44.19]
[1754413382445,7.8167226,163.84,163.82,44.19]
[1754413382643,12.5375926,163.84,163.82,0.2]
[1754413382846,39.0975926,163.84,163.82,0.2]
[1754413383034,45.48543136,163.84,163.82,0.2]
[1754413383832,49.55197968,163.84,163.82,0.2]
[1754413384138,92.89197968,163.84,163.82,0.2]
[1754413384339,88.82543136,163.84,163.82,0.2]
[1754413384725,82.72191574,163.84,163.82,0.2]
[1754413384925,91.82302175,163.84,163.82,0.2]
[1754413385225,48.19869861,163.84,163.82,0.2]
[1754413386531,22.19869861,163.84,163.83,0.9]
[1754413387329,22.19869861,163.84,163.83,0.2]
[1754413387528,22.19869861,163.84,163.83,0.9]
[1754413387835,22.19869861,163.84,163.83,0.2]
[1754413388027,22.19869861,163.84,163.83,0.9]
[1754413389030,22.19869861,163.84,163.83,7.00388817]
[1754413389638,22.19869861,163.84,163.83,6.30388817]
[1754413390154,22.19869861,163.84,163.83,7.00388817]
[1754413390645,9.66110601,163.84,163.83,7.00388817]
[1754413392664,9.66110601,163.84,163.83,19.54148077]
[1754413393021,9.66110601,163.84,163.83,7.00388817]
[1754413394069,9.66110601,163.84,163.83,22.25226531]
[1754413394363,9.66110601,163.84,163.83,34.78985791]
[1754413394656,1e-08,163.84,163.83,34.78985791]
[1754413399347,1e-08,163.84,163.83,22.25226531]
[1754413399545,1e-08,163.84,163.83,21.55226531]
[1754413399833,1e-08,163.84,163.83,34.78985791]
[1754413401207,1e-08,163.84,163.83,22.25226531]
[1754413401466,1e-08,163.84,163.83,21.41010374]
[1754413401637,1e-08,163.84,163.83,6.30388817]
[1754413402164,12.53759261,163.84,163.83,6.30388817]
[1754413402334,1e-08,163.84,163.83,6.30388817]
[1754413402536,0.03000001,163.84,163.83,19.54148077]
[1754413402732,1e-08,163.84,163.83,34.78985791]
[1754413403460,1e-08,163.84,163.83,78.43418105]
[1754413404345,1e-08,163.84,163.83,167.53418105]
[1754413408874,1e-08,163.84,163.83,123.18985791]
[1754413409200,1e-08,163.84,163.83,166.52985791]
[1754413409488,1e-08,163.84,163.83,167.22985791]
[1754413409669,1e-08,163.84,163.83,166.52985791]
[1754413410086,1e-08,163.84,163.83,167.22985791]
[1754413410474,1e-08,163.84,163.83,166.52985791]
[1754413410868,1e-08,163.84,163.83,153.99226531]
[1754413411073,1e-08,163.84,163.83,49.64388817]
[1754413411282,0.56000001,163.84,163.83,49.64388817]
[1754413411702,1e-08,163.84,163.83,49.64388817]
[1754413412770,0.56000001,163.84,163.83,49.64388817]
[1754413412994,1e-08,163.84,163.83,49.64388817]
[1754413413583,13.09759261,163.84,163.83,0.2]
[1754413413804,13.38191575,163.84,163.83,0.2]
[1754413414774,45.48543137,163.84,163.83,0.2]
[1754413415810,23.5439212,163.84,163.83,0.2]
[1754413415972,38.82191574,163.83,163.81,0.06]
[1754413416173,38.82191574,163.83,163.79,0.06]
[1754413416174,0.28432314,163.81,163.79,0.06]
[1754413416376,25.6351852,163.8,163.79,0.06]
[1754413416573,26.0,163.81,163.79,6.16532213]
[1754413416878,13.0975926,163.82,163.79,0.06]
[1754413417073,12.5375926,163.8,163.79,0.06]
[1754413418598,20.85494185,163.81,163.79,0.06]
[1754413418800,12.5375926,163.8,163.79,0.06]
[1754413419005,19.2025987,163.8,163.79,0.06]
[1754413420381,13.0975926,163.8,163.79,0.06]
[1754413420785,21.25308914,163.8,163.79,0.06]
[1754413421601,66.18001098,163.8,163.79,0.06]
[1754413421772,70.24776386,163.8,163.79,0.06]
[1754413422391,57.71017126,163.8,163.79,0.06]
[1754413422791,70.24776386,163.8,163.79,0.06]
[1754413424896,26.0,163.78,163.77,0.06]
[1754413425097,42.60534548,163.78,163.75,0.06]
[1754413425282,12.5375926,163.76,163.75,0.06]
[1754413425699,56.5175926,163.76,163.75,0.06]
[1754413426577,65.38439822,163.76,163.75,0.06]
[1754413426781,71.49089553,163.76,163.75,0.06]
[1754413426981,71.49089553,163.76,163.74,0.2]
[1754413427178,0.14216157,163.73,163.67,0.2]
[1754413427400,12.5375926,163.68,163.67,0.2]
[1754413427922,12.5375926,163.7,163.67,6.96985519]
[1754413428110,12.5375926,163.71,163.68,0.66]
[1754413428417,12.5375926,163.71,163.69,0.66]
[1754413428606,12.5375926,163.71,163.7,0.66]
[1754413429897,38.5375926,163.72,163.7,0.66]
[1754413430113,12.5375926,163.73,163.7,6.76872896]
[1754413430396,12.5375926,163.73,163.71,0.66]
[1754413430596,12.5375926,163.76,163.71,13.1975926]
[1754413430824,12.5375926,163.76,163.72,0.66]
[1754413430996,12.5375926,163.78,163.73,18.64520879]
[1754413431197,12.5375926,163.78,163.74,0.66]
[1754413431818,12.5375926,163.78,163.73,18.64520879]
[1754413432021,12.5375926,163.74,163.71,0.66]
[1754413432426,12.5375926,163.75,163.72,0.66]
[1754413432801,12.5375926,163.75,163.7,62.10604525]
[1754413433003,12.5375926,163.75,163.72,0.66]
[1754413433233,12.5375926,163.75,163.7,62.76604525]
[1754413433406,12.5375926,163.75,163.71,0.66]
[1754413433611,12.5375926,163.75,163.72,0.66]
[1754413433826,12.5375926,163.74,163.72,0.66]
[1754413434200,11.57501036,163.78,163.7,62.10604525]
[1754413434406,38.5375926,163.77,163.73,0.66]
[1754413435027,38.5375926,163.77,163.74,0.66]
[1754413435413,12.5375926,163.77,163.74,0.66]
[1754413436110,12.5375926,163.77,163.74,6.76709039]
[1754413436312,18.34694,163.78,163.75,13.1975926]
[1754413436517,26.0,163.79,163.76,0.66]
[1754413436696,38.5375926,163.79,163.74,18.64468299]
[1754413436902,53.8073966,163.79,163.75,0.66]
[1754413437433,12.5375926,163.78,163.75,0.66]
[1754413437813,12.5375926,163.78,163.75,6.76675813]
[1754413438016,53.8073966,163.79,163.76,0.66]
[1754413438631,59.91280413,163.79,163.74,19.30471982]
[1754413439003,59.91280413,163.79,163.75,0.66]
[1754413439309,53.8073966,163.79,163.75,0.66]
[1754413439502,59.91281769,163.79,163.75,0.66]
[1754413439699,60.47281769,163.79,163.75,0.66]
[1754413440426,12.5375926,163.78,163.73,19.30508599]
[1754413440629,12.5375926,163.78,163.74,0.66]
[1754413440821,13.0975926,163.78,163.73,18.64508599]
[1754413441021,13.0975926,163.78,163.73,19.30508599]
[1754413441250,41.269804,163.79,163.74,13.1975926]
[1754413441409,53.8073966,163.79,163.74,13.1975926]
[1754413441613,53.8073966,163.79,163.75,0.66]
[1754413442009,38.5375926,163.79,163.75,12.5375926]
[1754413442216,38.5375926,163.79,163.76,0.66]
[1754413442522,45.91974836,163.79,163.76,0.66]
[1754413443133,33.38215576,163.79,163.75,6.10683717]
[1754413443456,7.38215576,163.79,163.78,12.5375926]
[1754413443747,7.38215576,163.79,163.78,0.69]
[1754413444763,7.38215576,163.79,163.78,6.79575161]
[1754413444930,19.91974836,163.79,163.75,133.19]
[1754413445131,12.5375926,163.78,163.75,139.29672779]
[1754413445330,12.5375926,163.78,163.75,138.60672779]
[1754413445942,12.5375926,163.78,163.75,139.29672779]
[1754413446327,12.5375926,163.77,163.75,43.4]
[1754413446636,12.5375926,163.76,163.73,0.69]
[1754413446838,12.5375926,163.74,163.72,49.50785117]
[1754413447254,12.5375926,163.74,163.72,44.09]
[1754413447452,6.10625305,163.77,163.73,0.69]
[1754413447766,19.94974836,163.79,163.74,13.2275926]
[1754413448063,19.94974836,163.79,163.75,0.69]
[1754413448230,19.94974836,163.79,163.76,0.69]
[1754413448433,12.5375926,163.78,163.73,27.78596974]
[1754413448636,12.5375926,163.76,163.72,43.4]
[1754413448864,12.5375926,163.75,163.72,43.4]
[1754413449160,12.5375926,163.75,163.73,0.69]
[1754413449338,12.5375926,163.75,163.72,43.4]
[1754413449931,12.5375926,163.75,163.72,44.09]
[1754413450234,12.5375926,163.74,163.72,43.4]
[1754413450926,12.5375926,163.75,163.72,49.50791286]
[1754413451121,6.66612444,163.77,163.72,49.50791286]
[1754413451122,26.0,163.78,163.73,13.2275926]
[1754413451353,12.5375926,163.78,163.74,0.69]
[1754413451541,19.94974836,163.79,163.74,0.69]
[1754413451744,12.5375926,163.78,163.74,0.69]
[1754413452034,12.5375926,163.78,163.75,0.69]
[1754413452239,12.5375926,163.78,163.73,27.64380817]
[1754413452443,12.5375926,163.78,163.76,0.69]
[1754413452644,7.41215576,163.79,163.75,15.24837714]
[1754413452838,7.41215576,163.79,163.77,19.33361704]
[1754413453046,7.41215576,163.79,163.78,13.2275926]
[1754413453646,7.41215576,163.79,163.78,0.69]
[1754413454848,19.94974836,163.79,163.76,49.50636331]
[1754413455228,7.41215576,163.79,163.76,49.50636331]
[1754413455434,7.41215576,163.79,163.77,13.2275926]
[1754413455634,7.41215576,163.79,163.78,28.47596974]
[1754413456933,7.41215576,163.79,163.78,34.58172135]
[1754413461948,7.41215576,163.79,163.78,34.86604449]
[1754413462137,1e-08,163.84,163.79,41.24837714]
[1754413462336,1e-08,163.84,163.82,12.5375926]
[1754413462564,1e-08,163.84,163.83,43.38]
[1754413462947,13.09759261,163.84,163.81,43.38]
[1754413463271,13.0975926,163.83,163.81,43.38]
[1754413463571,12.5375926,163.83,163.81,43.38]
[1754413463772,1e-08,163.84,163.81,43.38]
[1754413464069,12.53759261,163.84,163.81,43.38]
[1754413464246,19.20115228,163.84,163.81,43.38]
[1754413464444,12.5375926,163.83,163.81,43.38]
[1754413464644,12.53759261,163.84,163.81,49.48457514]
[1754413464868,1e-08,163.84,163.81,50.17457514]
[1754413465039,1e-08,163.84,163.81,49.48457514]
[1754413465241,1e-08,163.84,163.82,0.69]
[1754413465563,13.0975926,163.83,163.81,43.38]
[1754413465873,13.0975926,163.82,163.76,43.38]
[1754413466169,12.5375926,163.78,163.76,43.38]
[1754413466340,0.56,163.82,163.76,44.07]
[1754413466341,12.5375926,163.79,163.76,44.07]
[1754413466844,12.5675926,163.79,163.76,49.48620415]
[1754413467058,12.5675926,163.79,163.77,0.69]
[1754413467265,12.5675926,163.79,163.76,49.48620415]
[1754413468238,12.5675926,163.79,163.76,50.17620415]
[1754413468443,0.03,163.79,163.77,0.69]
[1754413469275,0.03,163.79,163.77,6.79587735]
[1754413469458,0.03,163.79,163.78,0.69]
[1754413469776,0.03,163.79,163.77,6.79587735]
[1754413469958,0.03,163.79,163.76,49.48649703]
[1754413470146,12.5375926,163.78,163.76,43.38]
[1754413470348,0.03,163.79,163.77,0.69]
[1754413470684,0.03,163.79,163.78,44.07]
[1754413470844,0.03,163.79,163.78,71.85596974]
[1754413471049,1e-08,163.84,163.79,15.24837714]
[1754413471258,1e-08,163.84,163.82,12.5375926]
[1754413471458,1e-08,163.84,163.83,43.38]
[1754413471656,1e-08,163.84,163.83,44.07]
[1754413472164,1e-08,163.84,163.83,43.38]
[1754413472967,1e-08,163.84,163.83,44.07]
[1754413473266,1e-08,163.84,163.83,49.48388817]